fUSD/lending_fUSD_20250106
["ID","MTS","AMOUNT","RATE_DAILY","PERIOD"]
[347857591,1736163041718,-500.0,0.00010819,2]
[347857592,1736163041727,-500.0,0.00010819,2]
[347857593,1736163041736,-500.0,0.00010819,2]
[347857594,1736163041746,-500.0,0.00010819,2]
[347857595,1736163041755,-500.0,0.00010819,2]
[347857596,1736163041765,-500.0,0.00010819,2]
[347857597,1736163041774,-561.33007608,0.00010819,2]
[347857598,1736163041784,-500.0,0.00010819,2]
[347857599,1736163041794,-500.0,0.00010819,2]
[347857600,1736163041803,-500.0,0.00010819,2]
[347857601,1736163041812,-500.0,0.00010819,2]
[347857602,1736163041822,-500.0,0.00010819,2]
[347857603,1736163041831,-500.0,0.00010819,2]
[347857604,1736163041841,-500.0,0.00010819,2]
[347857605,1736163041851,-500.0,0.00010819,2]
[347857606,1736163041860,-500.0,0.00010819,2]
[347857607,1736163041870,-500.0,0.00010819,2]
[347857608,1736163041879,-500.0,0.00010819,2]
[347857609,1736163041889,-500.0,0.00010819,2]
[347857610,1736163041898,-500.0,0.00010819,2]
[347857611,1736163041907,-500.0,0.00010819,2]
[347857612,1736163041918,-500.0,0.00010819,2]
[347857613,1736163041927,-500.0,0.00010819,2]
[347857614,1736163041936,-500.0,0.00010819,2]
[347857615,1736163041946,-500.0,0.00010819,2]
[347857616,1736163041956,-500.0,0.00010819,2]
[347857617,1736163041966,-500.0,0.00010819,2]
[347857618,1736163041975,-500.0,0.00010819,2]
[347857619,1736163041985,-500.0,0.00010819,2]
[347857620,1736163041995,-500.0,0.00010819,2]
[347857621,1736163042004,-500.0,0.00010819,2]
[347857622,1736163042014,-500.0,0.00010819,2]
[347857623,1736163042024,-500.0,0.00010819,2]
[347857624,1736163042033,-500.0,0.00010819,2]
[347857625,1736163042043,-500.0,0.00010819,2]
[347857626,1736163042052,-500.0,0.00010819,2]
[347857627,1736163042062,-500.0,0.00010819,2]
[347857628,1736163042071,-500.0,0.00010819,2]
[347857629,1736163042081,-195.80841347,0.00010819,2]
[347857630,1736163042266,-500.0,0.00010819,2]
[347857631,1736163042276,-500.0,0.00010819,2]
[347857632,1736163042286,-500.0,0.00010819,2]
[347857633,1736163042296,-500.0,0.00010819,2]
[347857634,1736163042306,-569.09,0.00010819,2]
[347857635,1736163042316,-500.0,0.00010819,2]
[347857636,1736163042326,-500.0,0.00010819,2]
[347857637,1736163042335,-500.0,0.00010819,2]
[347857638,1736163042345,-500.0,0.00010819,2]
[347857639,1736163042355,-500.0,0.00010819,2]
[347857640,1736163042365,-500.0,0.00010819,2]
[347857641,1736163042375,-500.0,0.00010819,2]
[347857642,1736163042384,-500.0,0.00010819,2]
[347857643,1736163042394,-500.0,0.00010819,2]
[347857644,1736163042404,-500.0,0.00010819,2]
[347857645,1736163042415,-500.0,0.00010819,2]
[347857646,1736163042426,-500.0,0.00010819,2]
[347857647,1736163042437,-500.0,0.00010819,2]
[347857648,1736163042447,-500.0,0.00010819,2]
[347857649,1736163042457,-500.0,0.00010819,2]
[347857651,1736163042467,-500.0,0.00010819,2]
[347857653,1736163042477,-500.0,0.00010819,2]
[347857654,1736163042486,-551.64,0.00010819,2]
[347857655,1736163042496,-500.0,0.00010819,2]
[347857656,1736163042505,-500.0,0.00010819,2]
[347857657,1736163042515,-500.0,0.00010819,2]
[347857658,1736163042525,-500.0,0.00010819,2]
[347857659,1736163042534,-1311.62,0.00010819,2]
[347857660,1736163042545,-500.0,0.00010819,2]
[347857661,1736163042554,-500.0,0.00010819,2]
[347857662,1736163042564,-500.0,0.00010819,2]
[347857663,1736163042573,-500.0,0.00010819,2]
[347857664,1736163042583,-500.0,0.00010819,2]
[347857665,1736163042592,-500.0,0.00010819,2]
[347857666,1736163042603,-199.87,0.00010819,2]
[347857667,1736163042612,-787.37,0.00010819,2]
[347857668,1736163042622,-500.0,0.00010819,2]
[347857669,1736163042634,-500.0,0.00010819,2]
[347857671,1736163042644,-542.25,0.00010819,2]
[347857672,1736163042653,-500.0,0.00010819,2]
[347857673,1736163042663,-500.0,0.00010819,2]
[347857674,1736163042673,-500.0,0.00010819,2]
[347857675,1736163042683,-634.86382907,0.00010819,2]
[347857676,1736163042693,-2361.8,0.00010819,2]
[347857677,1736163042704,-902.71,0.00010819,2]
[347857678,1736163042713,-500.0,0.00010819,2]
[347857679,1736163042723,-500.0,0.00010819,2]
[347857681,1736163042733,-1886.62,0.00010819,2]
[347857682,1736163042743,-500.0,0.00010819,2]
[347857683,1736163042752,-249.7,0.00010819,2]
[347857684,1736163042762,-500.0,0.00010819,2]
[347857685,1736163042771,-500.0,0.00010819,2]
[347857686,1736163042783,-500.0,0.00010819,2]
[347857687,1736163042792,-500.0,0.00010819,2]
[347857688,1736163042802,-500.0,0.00010819,2]
[347857689,1736163042812,-500.0,0.00010819,2]
[347857690,1736163042822,-500.0,0.00010819,2]
[347857691,1736163042831,-500.0,0.00010819,2]
[347857692,1736163042841,-500.0,0.00010819,2]
[347857693,1736163042851,-2380.24,0.00010819,2]
[347857694,1736163042861,-500.0,0.00010819,2]
[347857695,1736163042870,-500.0,0.00010819,2]
[347857696,1736163042882,-500.0,0.00010819,2]
[347857697,1736163042891,-500.0,0.00010819,2]
[347857698,1736163042901,-1361.58,0.00010819,2]
[347857699,1736163042911,-500.0,0.00010819,2]
[347857700,1736163042920,-500.0,0.00010819,2]
[347857701,1736163042930,-1280.64,0.00010819,2]
[347857702,1736163042939,-500.0,0.00010819,2]
[347857703,1736163042949,-500.0,0.00010819,2]
[347857704,1736163042959,-500.0,0.00010819,2]
[347857705,1736163042968,-507.08,0.00010819,2]
[347857706,1736163042977,-500.0,0.00010819,2]
[347857707,1736163042987,-1263.12,0.00010819,2]
[347857708,1736163042996,-500.0,0.00010819,2]
[347857709,1736163043006,-500.0,0.00010819,2]
[347857710,1736163043015,-500.0,0.00010819,2]
[347857711,1736163043025,-558.84650284,0.00010819,2]
[347857712,1736163043034,-500.0,0.00010819,2]
[347857713,1736163043044,-2273.28,0.00010819,2]
[347857714,1736163043054,-500.0,0.00010819,2]
[347857715,1736163043063,-500.0,0.00010819,2]
[347857716,1736163043073,-500.0,0.00010819,2]
[347857717,1736163043082,-2016.39,0.00010819,2]
[347857718,1736163043092,-500.0,0.00010819,2]
[347857719,1736163043101,-500.0,0.00010819,2]
[347857720,1736163043111,-500.0,0.00010819,2]
[347857721,1736163043120,-500.0,0.00010819,2]
[347857722,1736163043130,-2989.35,0.00010819,2]
[347857723,1736163043139,-557.24,0.00010819,2]
[347857724,1736163043149,-500.0,0.00010819,2]
[347857725,1736163043159,-500.0,0.00010819,2]
[347857726,1736163043172,-500.0,0.00010819,2]
[347857727,1736163043181,-500.0,0.00010819,2]
[347857728,1736163043191,-500.0,0.00010819,2]
[347857729,1736163043200,-500.0,0.00010819,2]
[347857730,1736163043210,-999.56,0.00010819,2]
[347857731,1736163043220,-827.65,0.00010819,2]
[347857732,1736163043229,-714.26,0.00010819,2]
[347857733,1736163043239,-500.0,0.00010819,2]
[347857734,1736163043248,-500.0,0.00010819,2]
[347857735,1736163043258,-500.0,0.00010819,2]
[347857736,1736163043268,-500.0,0.00010819,2]
[347857737,1736163043278,-500.0,0.00010819,2]
[347857738,1736163043288,-500.0,0.00010819,2]
[347857739,1736163043297,-500.0,0.00010819,2]
[347857740,1736163043307,-929.6,0.00010819,2]
[347857741,1736163043316,-500.0,0.00010819,2]
[347857742,1736163043325,-500.0,0.00010819,2]
[347857743,1736163043335,-500.0,0.00010819,2]
[347857744,1736163043345,-500.0,0.00010819,2]
[347857745,1736163043354,-827.4,0.00010819,2]
[347857746,1736163043364,-500.0,0.00010819,2]
[347857747,1736163043373,-500.0,0.00010819,2]
[347857748,1736163043383,-508.17,0.00010819,2]
[347857749,1736163043393,-500.0,0.00010819,2]
[347857750,1736163043402,-608.83,0.00010819,2]
[347857751,1736163043414,-500.0,0.00010819,2]
[347857752,1736163043423,-500.0,0.00010819,2]
[347857753,1736163043433,-500.0,0.00010819,2]
[347857754,1736163043444,-500.0,0.00010819,2]
[347857755,1736163043454,-258.34,0.00010819,2]
[347857756,1736163043463,-500.0,0.00010819,2]
[347857757,1736163043473,-500.0,0.00010819,2]
[347857758,1736163043483,-500.0,0.00010819,2]
[347857759,1736163043493,-500.0,0.00010819,2]
[347857760,1736163043502,-500.0,0.00010819,2]
[347857761,1736163043511,-500.0,0.00010819,2]
[347857762,1736163043521,-500.0,0.00010819,2]
[347857763,1736163043530,-500.0,0.00010819,2]
[347857764,1736163043540,-500.0,0.00010819,2]
[347857765,1736163043550,-500.0,0.00010819,2]
[347857766,1736163043559,-4027.09,0.00010819,2]
[347857767,1736163043568,-501.49,0.00010819,2]
[347857768,1736163043578,-1610.19,0.00010819,2]
[347857769,1736163043588,-559.7,0.00010819,2]
[347857770,1736163043597,-825.11,0.00010819,2]
[347857771,1736163043606,-500.0,0.0001082,2]
[347857772,1736163043615,-500.0,0.0001082,2]
[347857773,1736163043625,-619.65,0.0001082,2]
[347857774,1736163043636,-500.0,0.0001082,2]
[347857775,1736163043646,-500.0,0.0001082,2]
[347857776,1736163043656,-702.72,0.0001082,2]
[347857777,1736163043667,-500.0,0.0001082,2]
[347857778,1736163043677,-519.19,0.0001082,2]
[347857779,1736163043687,-628.73,0.0001082,2]
[347857780,1736163043696,-500.0,0.0001082,2]
[347857781,1736163043706,-705.38,0.0001082,2]
[347857782,1736163043718,-500.0,0.0001082,2]
[347857783,1736163043728,-207.77,0.0001082,2]
[347857784,1736163043737,-322.95,0.0001082,2]
[347857785,1736163043747,-500.0,0.0001082,2]
[347857786,1736163043756,-500.0,0.0001082,2]
[347857787,1736163043765,-500.0,0.0001082,2]
[347857788,1736163043774,-500.0,0.0001082,2]
[347857789,1736163043783,-1409.52,0.0001082,2]
[347857790,1736163043793,-500.0,0.0001082,2]
[347857791,1736163043802,-500.0,0.0001082,2]
[347857792,1736163043812,-1185.81,0.0001082,2]
[347857793,1736163043821,-500.0,0.0001082,2]
[347857794,1736163043830,-500.0,0.0001082,2]
[347857795,1736163043839,-1878.13,0.0001082,2]
[347857796,1736163043849,-579.52,0.0001082,2]
[347857797,1736163043858,-5424.12,0.0001082,2]
[347857798,1736163043867,-500.0,0.0001082,2]
[347857799,1736163043876,-500.0,0.0001082,2]
[347857800,1736163043885,-500.0,0.0001082,2]
[347857801,1736163043895,-500.0,0.0001082,2]
[347857802,1736163043903,-500.0,0.0001082,2]
[347857803,1736163043913,-500.0,0.0001082,2]
[347857804,1736163043922,-500.0,0.0001082,2]
[347857805,1736163043931,-2689.22,0.0001082,2]
[347857806,1736163043940,-2577.17,0.0001082,2]
[347857807,1736163043950,-500.0,0.0001082,2]
[347857808,1736163043959,-939.2,0.0001082,2]
[347857809,1736163043969,-838.84,0.0001082,2]
[347857810,1736163043978,-1000.0,0.0001082,2]
[347857811,1736163043987,-674.17,0.0001082,2]
[347857812,1736163043996,-552.68,0.0001082,2]
[347857813,1736163044005,-500.0,0.00010821,2]
[347857814,1736163044015,-1653.02,0.00010821,2]
[347857815,1736163044024,-1475.29,0.00010821,2]
[347857816,1736163044033,-1345.24,0.00010821,2]
[347857817,1736163044042,-1470.76,0.00010821,2]
[347857818,1736163044051,-767.96,0.00010821,2]
[347857819,1736163044060,-500.0,0.00010821,2]
[347857820,1736163044069,-1441.55,0.00010821,2]
[347857821,1736163044079,-500.0,0.00010821,2]
[347857822,1736163044088,-500.0,0.00010821,2]
[347857823,1736163044097,-779.85,0.00010821,2]
[347857824,1736163044107,-500.0,0.00010821,2]
[347857825,1736163044116,-588.94554756,0.00010821,2]
[347857826,1736163044126,-4518.15488091,0.0001089,2]
[347857827,1736163044135,-3000.0,0.0001089,2]
[347857828,1736163044144,-900.0,0.000109,3]
[347857829,1736163044153,-253.38723423,0.000109,2]
[347857830,1736163044164,-4049.43168084,0.000109,2]
[347857831,1736163044173,-168.03580316,0.000109,2]
[347857832,1736163044182,-4049.43168082,0.000109,2]
[347857833,1736163044191,-4049.43168082,0.000109,2]
[347857834,1736163044200,-4049.43168082,0.000109,2]
[347857835,1736163044210,-4049.43168082,0.000109,2]
[347857836,1736163044219,-4049.43168082,0.000109,2]
[347857837,1736163044228,-4049.43168082,0.000109,2]
[347857838,1736163044237,-4049.43168082,0.000109,2]
[347857839,1736163044247,-4049.43168082,0.000109,2]
[347857840,1736163044256,-168.47471515,0.000109,2]
[347857841,1736163044266,-4049.43168082,0.000109,2]
[347857842,1736163044275,-4049.43168082,0.000109,2]
[347857843,1736163044284,-4049.43168082,0.000109,2]
[347857844,1736163044294,-4049.43168082,0.000109,2]
[347857845,1736163044303,-4049.43168082,0.000109,2]
[347857846,1736163044312,-8011.778,0.00010942,2]
[347857847,1736163044322,-377.957,0.00010942,2]
[347857848,1736163044332,-500.0,0.00010959,2]
[347857849,1736163044341,-2000.0,0.00010959,2]
[347857850,1736163044351,-500.0,0.00010959,2]
[347857851,1736163044360,-200.0,0.00010959,2]
[347857852,1736163044369,-3030.0,0.00010959,2]
[347857853,1736163044379,-151.79648817,0.00010973,2]
[347857854,1736163044388,-151.79380715,0.00010973,2]
[347857855,1736163044397,-151.7922475,0.00010973,2]
[347857856,1736163044406,-151.79224632,0.00010973,2]
[347857857,1736163044416,-150.79782697,0.00010973,2]
[347857858,1736163044425,-156.78541352,0.00010973,2]
[347857859,1736163044434,-151.7922475,0.00010973,2]
[347857860,1736163044443,-150.7936131,0.00010973,2]
[347857861,1736163044452,-152.79245062,0.00010973,2]
[347857862,1736163044461,-151.79027839,0.00010973,2]
[347857863,1736163044472,-500.0,0.00010973,2]
[347857864,1736163044481,-151.7922475,0.00010973,2]
[347857865,1736163044490,-151.79224632,0.00010973,2]
[347857866,1736163044500,-500.0,0.00010973,2]
[347857867,1736163044509,-30309.74665294,0.00010984,3]
[347857868,1736163044519,-400.0,0.00010986,2]
[347857869,1736163044528,-2026.4940757,0.00010995,2]
[347857870,1736163044539,-5847.3884275,0.00010995,2]
[347857871,1736163044548,-168.76,0.00010999,2]
[347857872,1736163044558,-1080.72791408,0.00010999,3]
[347857873,1736163044568,-1080.72791408,0.00010999,3]
[347857874,1736163044577,-1080.7279141,0.00010999,3]
[347857875,1736163044586,-1080.72791408,0.00010999,3]
[347857876,1736163044646,-1080.72791408,0.00010999,3]
[347857877,1736163044656,-1080.72791408,0.00010999,3]
[347857878,1736163044666,-1080.72791408,0.00010999,3]
[347857879,1736163044677,-1080.72791408,0.00010999,3]
[347857880,1736163044686,-500.0,0.00010999,2]
[347857881,1736163044695,-489.0658,0.00010999,2]
[347857882,1736163044704,-2082.15,0.00010999,2]
[347857883,1736163044715,-38391.92408553,0.00010999,2]
[347857884,1736163044724,-1659.91,0.00010999,2]
[347857885,1736163044734,-3301.58,0.00010999,2]
[347857886,1736163044743,-175.14846395,0.00010999,2]
[347857887,1736163044752,-1028.0,0.00010999,2]
[347857888,1736163044761,-7508.79194613,0.00011,2]
[347857889,1736163044771,-2740820.37911725,0.00011,4]
[347857890,1736163044926,-500.0,9.999e-05,2]
[347857891,1736163044935,-500.0,0.00010819,2]
[347857892,1736163044945,-2757.2485662,0.00011,4]
[347857893,1736163044956,-2906.23523565,0.00011,4]
[347857894,1736163044967,-276.23449714,0.00011,4]
[347857895,1736163044978,-289.218,0.00011,4]
[347857896,1736163044989,-7950.84938254,0.00011,4]
[347857897,1736163044999,-330.52207907,0.00011,4]
[347857898,1736163045105,-568.62252938,0.00011,4]
[347857899,1736163045391,-500.0,9.999e-05,2]
[347857900,1736163045401,-500.0,0.00010273,2]
[347857901,1736163045411,-500.0,0.00010547,2]
[347857902,1736163045421,-225.75,0.00010821,2]
[347857903,1736163045431,-1115.25000125,0.00011,4]
[347857904,1736163045442,-1174627.49310258,0.00011,4]
[347857905,1736163045456,-1668.02297108,0.00011,4]
[347857906,1736163045467,-993.12736041,0.00011,4]
[347857907,1736163045528,-8301.97409171,0.00011,4]
[347857908,1736163045539,-2699.828592,0.00011,4]
[347857909,1736163045550,-14285.92213661,0.00011,4]
[347857912,1736163045860,-562.78,9.999e-05,2]
[347857913,1736163045869,-500.0,9.999e-05,2]
[347857914,1736163045879,-500.0,0.00010272,2]
[347857915,1736163045888,-150.0,0.000103,2]
[347857916,1736163045898,-500.0,0.00010545,2]
[347857917,1736163045907,-151.04367,0.00010801,2]
[347857918,1736163045918,-500.0,0.00010819,2]
[347857919,1736163045927,-4049.43168082,0.000109,2]
[347857920,1736163045936,-27879.24717526,0.00011,4]
[347857921,1736163045947,-3065.62537981,0.00011,4]
[347857922,1736163045983,-958.56,0.00011,4]
[347857923,1736163045994,-37642.8563767,0.00011,4]
[347857924,1736163046011,-381.78436707,0.00011,4]
[347857925,1736163046023,-14462.20378905,0.00011,4]
[347858014,1736163155082,531.72,8.219e-05,2]
[347858019,1736163414936,1400.0,0.00012,29]
[347858020,1736163580302,-5000.0,9.6e-05,2]
[347858021,1736163580325,-428.6,9.707e-05,2]
[347858022,1736163580346,-250.0,9.819e-05,2]
[347858023,1736163580367,-379.6317,9.9e-05,2]
[347858024,1736163580389,-150.0,9.998e-05,2]
[347858025,1736163580410,-500.0,9.999e-05,2]
[347858026,1736163580431,-500.0,9.999e-05,2]
[347858027,1736163580453,-500.0,9.999e-05,2]
[347858028,1736163580474,-500.0,9.999e-05,2]
[347858029,1736163580495,-500.0,9.999e-05,2]
[347858030,1736163580515,-500.0,9.999e-05,2]
[347858031,1736163580536,-500.0,9.999e-05,2]
[347858032,1736163580557,-500.0,9.999e-05,2]
[347858033,1736163580577,-500.0,9.999e-05,2]
[347858034,1736163580598,-500.0,9.999e-05,2]
[347858035,1736163580619,-500.0,9.999e-05,2]
[347858036,1736163580641,-500.0,9.999e-05,2]
[347858037,1736163580662,-500.0,9.999e-05,2]
[347858038,1736163580684,-500.0,9.999e-05,2]
[347858039,1736163580705,-500.0,9.999e-05,2]
[347858040,1736163580727,-500.0,9.999e-05,2]
[347858041,1736163580748,-293.26759815,9.999e-05,2]
[347858042,1736163580769,-500.0,9.999e-05,2]
[347858043,1736163580789,-500.0,9.999e-05,2]
[347858044,1736163580812,-166.1734635,9.999e-05,2]
[347858045,1736163580832,-500.0,9.999e-05,2]
[347858046,1736163580854,-595.77,9.999e-05,2]
[347858047,1736163580874,-500.0,9.999e-05,2]
[347858048,1736163580898,-500.0,9.999e-05,2]
[347858049,1736163580920,-500.0,9.999e-05,2]
[347858050,1736163580942,-500.0,9.999e-05,2]
[347858051,1736163580963,-500.0,9.999e-05,2]
[347858052,1736163580985,-500.0,9.999e-05,2]
[347858053,1736163581006,-474.76735318,9.999e-05,2]
[347858054,1736163581027,-500.0,9.999e-05,2]
[347858055,1736163581048,-567.43067046,9.999e-05,2]
[347858056,1736163581070,-500.0,9.999e-05,2]
[347858057,1736163581092,-500.0,9.999e-05,2]
[347858058,1736163581114,-500.0,9.999e-05,2]
[347858059,1736163581137,-500.0,9.999e-05,2]
[347858060,1736163581159,-500.0,9.999e-05,2]
[347858061,1736163581181,-500.0,9.999e-05,2]
[347858062,1736163581203,-500.0,9.999e-05,2]
[347858063,1736163581225,-500.0,9.999e-05,2]
[347858064,1736163581245,-500.0,9.999e-05,2]
[347858065,1736163581268,-500.0,9.999e-05,2]
[347858066,1736163581289,-500.0,9.999e-05,2]
[347858067,1736163581311,-500.0,9.999e-05,2]
[347858068,1736163581334,-500.0,9.999e-05,2]
[347858069,1736163581356,-500.0,9.999e-05,2]
[347858070,1736163581378,-500.0,9.999e-05,2]
[347858071,1736163581402,-500.0,9.999e-05,2]
[347858072,1736163581423,-502.04294904,9.999e-05,2]
[347858073,1736163581444,-500.0,9.999e-05,2]
[347858074,1736163581466,-371.28117356,9.999e-05,2]
[347858075,1736163581488,-500.0,9.999e-05,2]
[347858076,1736163581509,-500.0,9.999e-05,2]
[347858077,1736163581531,-542.57327071,9.999e-05,2]
[347858078,1736163581552,-500.0,9.999e-05,2]
[347858079,1736163581573,-569.84678871,9.999e-05,2]
[347858080,1736163581594,-356.9002464,9.999e-05,2]
[347858081,1736163581616,-500.0,9.999e-05,2]
[347858082,1736163581640,-500.0,9.999e-05,2]
[347858083,1736163581662,-500.0,9.999e-05,2]
[347858084,1736163581683,-500.0,9.999e-05,2]
[347858085,1736163581705,-500.0,9.999e-05,2]
[347858086,1736163581726,-500.0,9.999e-05,2]
[347858087,1736163581747,-500.0,9.999e-05,2]
[347858088,1736163581768,-500.0,9.999e-05,2]
[347858089,1736163581789,-500.0,9.999e-05,2]
[347858090,1736163581817,-359.21301205,9.999e-05,2]
[347858091,1736163581838,-500.0,9.999e-05,2]
[347858092,1736163581862,-434.04682333,9.999e-05,2]
[347858093,1736163581884,-500.0,9.999e-05,2]
[347858094,1736163581907,-555.11664775,9.999e-05,2]
[347858095,1736163581928,-500.0,9.999e-05,2]
[347858096,1736163581949,-500.0,9.999e-05,2]
[347858097,1736163581971,-500.0,9.999e-05,2]
[347858098,1736163581991,-500.0,9.999e-05,2]
[347858099,1736163582013,-500.0,9.999e-05,2]
[347858100,1736163582034,-500.0,9.999e-05,2]
[347858101,1736163582259,-500.0,9.999e-05,2]
[347858102,1736163582283,-500.0,9.999e-05,2]
[347858103,1736163582305,-500.0,9.999e-05,2]
[347858104,1736163582326,-500.0,9.999e-05,2]
[347858105,1736163582347,-500.0,9.999e-05,2]
[347858106,1736163582368,-544.34,9.999e-05,2]
[347858107,1736163582391,-500.0,9.999e-05,2]
[347858108,1736163582414,-593.99533279,9.999e-05,2]
[347858109,1736163582435,-501.08635958,9.999e-05,2]
[347858110,1736163582457,-500.0,9.999e-05,2]
[347858111,1736163582479,-500.0,9.999e-05,2]
[347858112,1736163582500,-500.0,9.999e-05,2]
[347858113,1736163582521,-575.29781593,9.999e-05,2]
[347858114,1736163582543,-500.0,9.999e-05,2]
[347858115,1736163582564,-500.0,9.999e-05,2]
[347858116,1736163582587,-500.0,9.999e-05,2]
[347858117,1736163582608,-500.0,9.999e-05,2]
[347858118,1736163582630,-500.0,9.999e-05,2]
[347858119,1736163582652,-500.0,9.999e-05,2]
[347858120,1736163582675,-500.0,9.999e-05,2]
[347858121,1736163582696,-377.93351,9.999e-05,2]
[347858122,1736163582718,-534.8124802,9.999e-05,2]
[347858123,1736163582740,-500.0,9.999e-05,2]
[347858124,1736163582761,-500.0,9.999e-05,2]
[347858125,1736163582782,-500.0,9.999e-05,2]
[347858126,1736163582804,-500.0,9.999e-05,2]
[347858127,1736163582826,-598.86,9.999e-05,2]
[347858128,1736163582849,-500.0,9.999e-05,2]
[347858129,1736163582870,-176.78,9.999e-05,2]
[347858130,1736163582894,-500.0,9.999e-05,2]
[347858131,1736163582916,-500.0,9.999e-05,2]
[347858132,1736163582937,-500.0,9.999e-05,2]
[347858133,1736163582958,-500.0,9.999e-05,2]
[347858134,1736163582980,-506.53288592,9.999e-05,2]
[347858135,1736163583001,-500.0,9.999e-05,2]
[347858136,1736163583022,-500.0,9.999e-05,2]
[347858137,1736163583044,-500.0,9.999e-05,2]
[347858138,1736163583066,-500.0,9.999e-05,2]
[347858139,1736163583088,-500.0,9.999e-05,2]
[347858140,1736163583109,-2991.13,9.999e-05,2]
[347858141,1736163583130,-500.0,9.999e-05,2]
[347858142,1736163583152,-500.0,9.999e-05,2]
[347858143,1736163583174,-500.0,9.999e-05,2]
[347858144,1736163583195,-500.0,9.999e-05,2]
[347858145,1736163583216,-500.0,9.999e-05,2]
[347858146,1736163583238,-500.0,9.999e-05,2]
[347858147,1736163583261,-500.0,9.999e-05,2]
[347858148,1736163583283,-500.0,9.999e-05,2]
[347858149,1736163583305,-500.0,9.999e-05,2]
[347858150,1736163583328,-500.0,9.999e-05,2]
[347858151,1736163583350,-501.88690847,9.999e-05,2]
[347858152,1736163583371,-500.0,9.999e-05,2]
[347858153,1736163583395,-500.0,9.999e-05,2]
[347858154,1736163583418,-500.0,9.999e-05,2]
[347858155,1736163583440,-500.0,9.999e-05,2]
[347858156,1736163583463,-500.0,9.999e-05,2]
[347858157,1736163583485,-500.0,9.999e-05,2]
[347858158,1736163583506,-500.0,9.999e-05,2]
[347858159,1736163583528,-500.0,9.999e-05,2]
[347858160,1736163583549,-502.78501741,9.999e-05,2]
[347858161,1736163583570,-500.0,9.999e-05,2]
[347858162,1736163583592,-500.0,9.999e-05,2]
[347858163,1736163583612,-500.0,9.999e-05,2]
[347858164,1736163583634,-500.0,9.999e-05,2]
[347858165,1736163583658,-523.19194113,9.999e-05,2]
[347858166,1736163583680,-609.99,9.999e-05,2]
[347858167,1736163583702,-500.0,9.999e-05,2]
[347858168,1736163583724,-500.0,9.999e-05,2]
[347858169,1736163583746,-500.0,9.999e-05,2]
[347858170,1736163583767,-500.0,9.999e-05,2]
[347858171,1736163583789,-500.0,9.999e-05,2]
[347858172,1736163583815,-273.28,9.999e-05,2]
[347858173,1736163583836,-296.09675034,9.999e-05,2]
[347858174,1736163583860,-206.27300404,9.999e-05,2]
[347858175,1736163583882,-278.4712197,9.999e-05,2]
[347858176,1736163583908,-500.0,9.999e-05,2]
[347858177,1736163583930,-500.0,9.999e-05,2]
[347858178,1736163583952,-500.0,9.999e-05,2]
[347858179,1736163583974,-385.51569332,9.999e-05,2]
[347858180,1736163583995,-500.0,9.999e-05,2]
[347858181,1736163584017,-500.0,9.999e-05,2]
[347858182,1736163584038,-500.0,9.999e-05,2]
[347858183,1736163584059,-502.01857993,9.999e-05,2]
[347858184,1736163584080,-500.0,9.999e-05,2]
[347858185,1736163584101,-500.0,9.999e-05,2]
[347858186,1736163584122,-500.0,9.999e-05,2]
[347858187,1736163584143,-500.0,9.999e-05,2]
[347858188,1736163584164,-596.34,9.999e-05,2]